[Event "Late-Titled-Tuesday-Blitz-May-28-2024"]
[Site "Chess.com"]
[Date "2024.05.28"]
[Round "5"]
[White "Nathan_Filgueiras"]
[Black "FredddieCroderg"]
[Result "0-1"]
[WhiteElo "2535"]
[BlackElo "2298"]
[TimeControl "180+1"]
[EndTime "14:55:44 PDT"]
[Termination "FredddieCroderg won by checkmate"]

1. e4 {[%clk 0:03:00.9]} 1... c6 {[%clk 0:02:59.2]} 2. d4 {[%clk 0:03:00.8]}
2... d5 {[%clk 0:02:59]} 3. e5 {[%clk 0:03:01.1]} 3... Bf5 {[%clk 0:02:57.2]} 4.
h4 {[%clk 0:03:01.1]} 4... h5 {[%clk 0:02:55]} 5. Bd3 {[%clk 0:03:01.5]} 5...
Bxd3 {[%clk 0:02:53]} 6. Qxd3 {[%clk 0:03:02.4]} 6... e6 {[%clk 0:02:52.5]} 7.
Nf3 {[%clk 0:03:02.2]} 7... c5 {[%clk 0:02:48.5]} 8. c3 {[%clk 0:03:02]} 8...
Nc6 {[%clk 0:02:47]} 9. O-O {[%clk 0:03:01.9]} 9... Qb6 {[%clk 0:02:45.2]} 10.
a3 {[%clk 0:03:00.7]} 10... Nh6 {[%clk 0:02:38]} 11. Bxh6 {[%clk 0:02:57.2]}
11... Rxh6 {[%clk 0:02:36.6]} 12. b4 {[%clk 0:02:58.1]} 12... cxb4 {[%clk
0:02:34.1]} 13. axb4 {[%clk 0:02:57.7]} 13... Rc8 {[%clk 0:02:20.7]} 14. Nbd2
{[%clk 0:02:57.3]} 14... a6 {[%clk 0:02:19.8]} 15. Nb3 {[%clk 0:02:55.3]} 15...
Qb5 {[%clk 0:02:11.1]} 16. Qd2 {[%clk 0:02:40.7]} 16... Be7 {[%clk 0:02:03.7]}
17. Nc5 {[%clk 0:02:40.3]} 17... a5 {[%clk 0:01:47.3]} 18. Rfb1 {[%clk
0:01:35.7]} 18... axb4 {[%clk 0:01:29.5]} 19. cxb4 {[%clk 0:01:36.6]} 19... b6
{[%clk 0:01:25.3]} 20. Nd3 {[%clk 0:01:32.1]} 20... Rg6 {[%clk 0:01:06.5]} 21.
g3 {[%clk 0:01:29.9]} 21... Rg4 {[%clk 0:01:03.9]} 22. Nf4 {[%clk 0:01:18.5]}
22... Bxb4 {[%clk 0:00:56.1]} 23. Qc2 {[%clk 0:01:08.7]} 23... Qc4 {[%clk
0:00:35.6]} 24. Qh7 {[%clk 0:00:43.8]} 24... Nxd4 {[%clk 0:00:35.1]} 25. Nxd4
{[%clk 0:00:39.5]} 25... Qxd4 {[%clk 0:00:34.5]} 26. Qg8+ {[%clk 0:00:19.6]}
26... Bf8 {[%clk 0:00:33]} 27. Ra7 {[%clk 0:00:20.2]} 27... Qxf4 {[%clk
0:00:29.7]} 28. Rba1 {[%clk 0:00:07.3]} 28... Rxg3+ {[%clk 0:00:29]} 29. fxg3
{[%clk 0:00:07.2]} 29... Qxg3+ {[%clk 0:00:28.9]} 30. Kh1 {[%clk 0:00:07.5]}
30... Qxh4+ {[%clk 0:00:26.8]} 31. Kg2 {[%clk 0:00:07.5]} 31... Rc2+ {[%clk
0:00:23.2]} 32. Kf3 {[%clk 0:00:06.7]} 32... Qf2# {[%clk 0:00:16.3]} 0-1

[Event "Late-Titled-Tuesday-Blitz-May-28-2024"]
[Site "Chess.com"]
[Date "2024.05.28"]
[Round "5"]
[White "hansen"]
[Black "AlexeiShirov"]
[Result "0-1"]
[WhiteElo "3052"]
[BlackElo "2918"]
[TimeControl "180+1"]
[EndTime "14:55:48 PDT"]
[Termination "AlexeiShirov won on time"]

1. e4 {[%clk 0:02:59.5]} 1... e5 {[%clk 0:02:59.4]} 2. Nf3 {[%clk 0:02:59.6]}
2... Nc6 {[%clk 0:02:59.4]} 3. Bb5 {[%clk 0:02:56.8]} 3... f5 {[%clk 0:02:58.4]}
4. d3 {[%clk 0:02:47.6]} 4... fxe4 {[%clk 0:02:58]} 5. dxe4 {[%clk 0:02:48.5]}
5... Nf6 {[%clk 0:02:57.8]} 6. Nc3 {[%clk 0:02:44.7]} 6... Bb4 {[%clk
0:02:56.7]} 7. O-O {[%clk 0:02:30.5]} 7... Bxc3 {[%clk 0:02:52.7]} 8. bxc3
{[%clk 0:02:30.7]} 8... d6 {[%clk 0:02:47.8]} 9. Qd3 {[%clk 0:02:09.6]} 9... Bd7
{[%clk 0:02:37.6]} 10. Rb1 {[%clk 0:02:05.5]} 10... Qe7 {[%clk 0:02:26.4]} 11.
Bg5 {[%clk 0:01:39.5]} 11... h6 {[%clk 0:02:18.3]} 12. Bxf6 {[%clk 0:01:31.9]}
12... Qxf6 {[%clk 0:02:17.9]} 13. Nd2 {[%clk 0:01:32.5]} 13... Rb8 {[%clk
0:01:50.2]} 14. Nc4 {[%clk 0:01:28.7]} 14... a6 {[%clk 0:01:48.1]} 15. Bxc6
{[%clk 0:01:23.3]} 15... Bxc6 {[%clk 0:01:47.2]} 16. Na5 {[%clk 0:01:24.1]}
16... Bd7 {[%clk 0:01:33.6]} 17. Nxb7 {[%clk 0:01:18.6]} 17... O-O {[%clk
0:01:31.7]} 18. c4 {[%clk 0:01:08.4]} 18... Bc6 {[%clk 0:01:26.9]} 19. c5 {[%clk
0:00:51.2]} 19... Kh7 {[%clk 0:01:11.5]} 20. Qxa6 {[%clk 0:00:46.3]} 20... Bxe4
{[%clk 0:01:07.2]} 21. f3 {[%clk 0:00:37.8]} 21... Bxc2 {[%clk 0:01:05.7]} 22.
Rbc1 {[%clk 0:00:31.6]} 22... Qg6 {[%clk 0:01:03.8]} 23. Rf2 {[%clk 0:00:23.7]}
23... Bd3 {[%clk 0:01:01.5]} 24. Qc6 {[%clk 0:00:23]} 24... e4 {[%clk
0:01:00.9]} 25. Re1 {[%clk 0:00:15.5]} 25... exf3 {[%clk 0:00:47.2]} 26. Rxf3
{[%clk 0:00:15]} 26... Bb5 {[%clk 0:00:45.9]} 27. Qxb5 {[%clk 0:00:04.2]} 27...
Rxf3 {[%clk 0:00:44.9]} 28. c6 {[%clk 0:00:03.8]} 28... Rc3 {[%clk 0:00:42]} 29.
h3 {[%clk 0:00:03.3]} 29... Rxh3 {[%clk 0:00:32.6]} 30. Qd5 {[%clk 0:00:02.7]}
30... Rc3 {[%clk 0:00:27.5]} 31. Re7 {[%clk 0:00:02.6]} 31... Rf8 {[%clk
0:00:21.8]} 32. Rxc7 {[%clk 0:00:01.6]} 32... Rc1+ {[%clk 0:00:20.3]} 33. Kh2
{[%clk 0:00:01.8]} 33... Rff1 {[%clk 0:00:20]} 0-1

[Event "Late-Titled-Tuesday-Blitz-May-28-2024"]
[Site "Chess.com"]
[Date "2024.05.28"]
[Round "5"]
[White "cassoulet"]
[Black "egnfanclub"]
[Result "1-0"]
[WhiteElo "2710"]
[BlackElo "2335"]
[TimeControl "180+1"]
[EndTime "14:55:49 PDT"]
[Termination "cassoulet won on time"]

1. d4 {[%clk 0:03:00.9]} 1... d5 {[%clk 0:02:59.8]} 2. Bf4 {[%clk 0:03:00.6]}
2... Nf6 {[%clk 0:02:59.6]} 3. e3 {[%clk 0:03:01]} 3... Bf5 {[%clk 0:02:59.6]}
4. Nd2 {[%clk 0:03:00.9]} 4... e6 {[%clk 0:02:59.8]} 5. c3 {[%clk 0:03:00.5]}
5... Bd6 {[%clk 0:02:59.3]} 6. Bg3 {[%clk 0:03:00.1]} 6... O-O {[%clk
0:02:58.3]} 7. Ngf3 {[%clk 0:03:00.6]} 7... Bxg3 {[%clk 0:02:57.7]} 8. hxg3
{[%clk 0:03:00.4]} 8... Nbd7 {[%clk 0:02:54.8]} 9. Be2 {[%clk 0:03:00.2]} 9...
c5 {[%clk 0:02:54.4]} 10. Ne5 {[%clk 0:02:48.3]} 10... cxd4 {[%clk 0:02:34.6]}
11. exd4 {[%clk 0:02:41.6]} 11... Nxe5 {[%clk 0:02:31.2]} 12. dxe5 {[%clk
0:02:42.5]} 12... Nd7 {[%clk 0:02:31.7]} 13. g4 {[%clk 0:02:40.9]} 13... Bg6
{[%clk 0:02:29.9]} 14. f4 {[%clk 0:02:40.9]} 14... Nc5 {[%clk 0:02:08.2]} 15.
Nf3 {[%clk 0:02:35.7]} 15... Ne4 {[%clk 0:02:04.2]} 16. Qd4 {[%clk 0:02:29.1]}
16... Ng3 {[%clk 0:01:49.1]} 17. Rh3 {[%clk 0:02:25.3]} 17... Nxe2 {[%clk
0:01:48.6]} 18. Kxe2 {[%clk 0:02:26.2]} 18... Qb6 {[%clk 0:01:46.1]} 19. Qxb6
{[%clk 0:02:24.5]} 19... axb6 {[%clk 0:01:45.6]} 20. Nd4 {[%clk 0:02:23.6]}
20... Be4 {[%clk 0:01:19.9]} 21. Kf2 {[%clk 0:02:22.6]} 21... Rfc8 {[%clk
0:01:02.6]} 22. a3 {[%clk 0:02:20]} 22... h6 {[%clk 0:00:51.4]} 23. Rah1 {[%clk
0:02:17.5]} 23... Kf8 {[%clk 0:00:51.5]} 24. f5 {[%clk 0:02:15.3]} 24... exf5
{[%clk 0:00:48.9]} 25. gxf5 {[%clk 0:02:15.7]} 25... Ke7 {[%clk 0:00:47.3]} 26.
Rg3 {[%clk 0:02:10.4]} 26... Rg8 {[%clk 0:00:41.5]} 27. f6+ {[%clk 0:02:01.4]}
27... gxf6 {[%clk 0:00:41.3]} 28. exf6+ {[%clk 0:02:02.3]} 28... Kd6 {[%clk
0:00:38.4]} 29. Rg7 {[%clk 0:01:55.8]} 29... Bg6 {[%clk 0:00:22.3]} 30. Rxh6
{[%clk 0:01:50.3]} 30... Ke5 {[%clk 0:00:22.5]} 31. Rhxg6 {[%clk 0:01:39]} 31...
fxg6 {[%clk 0:00:22]} 32. Rxb7 {[%clk 0:01:38.7]} 32... Kxf6 {[%clk 0:00:21.3]}
33. Rxb6+ {[%clk 0:01:38.5]} 33... Ke5 {[%clk 0:00:21.6]} 34. Ke3 {[%clk
0:01:33.5]} 34... Rae8 {[%clk 0:00:18.1]} 35. g4 {[%clk 0:01:32.6]} 35... Rgf8
{[%clk 0:00:07.5]} 36. Rxg6 {[%clk 0:01:32.3]} 36... Rf6 {[%clk 0:00:06.4]} 37.
Rg7 {[%clk 0:01:15.4]} 37... Kd6+ {[%clk 0:00:06.2]} 38. Kd3 {[%clk 0:01:15.8]}
38... Re1 {[%clk 0:00:02.6]} 39. Nf5+ {[%clk 0:01:11.9]} 39... Kc6 {[%clk
0:00:01.9]} 40. Ra7 {[%clk 0:01:07.3]} 40... Rf8 {[%clk 0:00:00.5]} 41. Ra6+
{[%clk 0:01:06.1]} 41... Kb7 {[%clk 0:00:01]} 42. Rd6 {[%clk 0:01:04.3]} 42...
Rg1 {[%clk 0:00:01.6]} 43. Rxd5 {[%clk 0:01:01.3]} 43... Rxg4 {[%clk 0:00:02.2]}
44. Nd4 {[%clk 0:01:00.2]} 44... Rg3+ {[%clk 0:00:01.9]} 45. Kc4 {[%clk
0:01:00.1]} 45... Rf2 {[%clk 0:00:02.5]} 46. b4 {[%clk 0:00:58.7]} 46... Rc2
{[%clk 0:00:01.6]} 47. Nb5 {[%clk 0:00:58.6]} 47... Kc8 {[%clk 0:00:01]} 48. Rh5
{[%clk 0:00:57.3]} 48... Rf2 {[%clk 0:00:01]} 49. a4 {[%clk 0:00:57.1]} 1-0

[Event "Late-Titled-Tuesday-Blitz-May-28-2024"]
[Site "Chess.com"]
[Date "2024.05.28"]
[Round "5"]
[White "Sanyura"]
[Black "Caterpiller35"]
[Result "0-1"]
[WhiteElo "2612"]
[BlackElo "2477"]
[TimeControl "180+1"]
[EndTime "14:55:54 PDT"]
[Termination "Caterpiller35 won on time"]

1. e4 {[%clk 0:02:53.4]} 1... c5 {[%clk 0:02:48.7]} 2. Nf3 {[%clk 0:02:52.8]}
2... Nc6 {[%clk 0:02:43.5]} 3. d4 {[%clk 0:02:48.7]} 3... cxd4 {[%clk
0:02:39.4]} 4. Nxd4 {[%clk 0:02:49.6]} 4... e5 {[%clk 0:02:39]} 5. Nb5 {[%clk
0:02:49.4]} 5... d6 {[%clk 0:02:38.3]} 6. N1c3 {[%clk 0:02:48.3]} 6... a6 {[%clk
0:02:37.9]} 7. Na3 {[%clk 0:02:48.5]} 7... b5 {[%clk 0:02:38.3]} 8. Nd5 {[%clk
0:02:48]} 8... Nge7 {[%clk 0:02:37.2]} 9. c4 {[%clk 0:02:46]} 9... Nd4 {[%clk
0:02:37]} 10. Be3 {[%clk 0:02:44]} 10... Nxd5 {[%clk 0:02:36.4]} 11. exd5 {[%clk
0:02:43.7]} 11... Nf5 {[%clk 0:02:36]} 12. Bd2 {[%clk 0:02:38.5]} 12... g6
{[%clk 0:02:35.7]} 13. Bd3 {[%clk 0:02:35.6]} 13... Bg7 {[%clk 0:02:35.1]} 14.
O-O {[%clk 0:02:35.8]} 14... O-O {[%clk 0:02:35.1]} 15. cxb5 {[%clk 0:02:35.5]}
15... e4 {[%clk 0:02:30.8]} 16. Bxe4 {[%clk 0:02:34.4]} 16... Bxb2 {[%clk
0:02:30.6]} 17. Qb3 {[%clk 0:02:18.9]} 17... Bxa1 {[%clk 0:02:28.5]} 18. Rxa1
{[%clk 0:02:19.8]} 18... axb5 {[%clk 0:02:27.8]} 19. Nxb5 {[%clk 0:02:20.7]}
19... Re8 {[%clk 0:02:17.4]} 20. Bxf5 {[%clk 0:02:10.5]} 20... Bxf5 {[%clk
0:02:17.1]} 21. Qb2 {[%clk 0:02:08.9]} 21... Qb6 {[%clk 0:02:07.1]} 22. Bh6
{[%clk 0:02:06.3]} 22... Re5 {[%clk 0:02:01.3]} 23. a4 {[%clk 0:02:00.4]} 23...
Rae8 {[%clk 0:01:54.9]} 24. h3 {[%clk 0:01:58.4]} 24... f6 {[%clk 0:01:44.2]}
25. Kh2 {[%clk 0:01:48.6]} 25... Kf7 {[%clk 0:01:21.1]} 26. a5 {[%clk
0:01:34.3]} 26... Qc5 {[%clk 0:01:10.5]} 27. Rc1 {[%clk 0:01:21]} 27... Qxd5
{[%clk 0:01:09.3]} 28. a6 {[%clk 0:01:17.6]} 28... Qxb5 {[%clk 0:01:07.1]} 29.
Rc7+ {[%clk 0:01:12.8]} 29... R8e7 {[%clk 0:01:03.2]} 30. Qa2+ {[%clk 0:01:11]}
30... Be6 {[%clk 0:01:01.4]} 31. Rxe7+ {[%clk 0:01:05.5]} 31... Kxe7 {[%clk
0:01:01.2]} 32. Qa3 {[%clk 0:00:51.3]} 32... Qa5 {[%clk 0:00:58.3]} 33. Qf3
{[%clk 0:00:13.1]} 33... Qxa6 {[%clk 0:00:55.2]} 34. Bg7 {[%clk 0:00:13.4]}
34... Rf5 {[%clk 0:00:52.7]} 35. Qc3 {[%clk 0:00:12.8]} 35... Qc8 {[%clk
0:00:50.5]} 36. Qe3 {[%clk 0:00:09.1]} 36... Kf7 {[%clk 0:00:49.4]} 37. g4
{[%clk 0:00:04.9]} 37... Re5 {[%clk 0:00:35.8]} 38. Qh6 {[%clk 0:00:05]} 38...
Qg8 {[%clk 0:00:35.8]} 0-1

[Event "Late-Titled-Tuesday-Blitz-May-28-2024"]
[Site "Chess.com"]
[Date "2024.05.28"]
[Round "5"]
[White "rasmussvane"]
[Black "Blitz"]
[Result "1-0"]
[WhiteElo "2927"]
[BlackElo "2520"]
[TimeControl "180+1"]
[EndTime "14:55:55 PDT"]
[Termination "rasmussvane won on time"]

1. Nf3 {[%clk 0:02:59.5]} 1... d5 {[%clk 0:02:59.6]} 2. g3 {[%clk 0:02:59.4]}
2... Nd7 {[%clk 0:02:52.8]} 3. d4 {[%clk 0:02:56.9]} 3... Nb6 {[%clk 0:02:52.7]}
4. Nc3 {[%clk 0:02:53.4]} 4... Nf6 {[%clk 0:02:45.7]} 5. Bg2 {[%clk 0:02:51.1]}
5... g6 {[%clk 0:02:31.8]} 6. O-O {[%clk 0:02:46.6]} 6... Bg7 {[%clk 0:02:31.6]}
7. a4 {[%clk 0:02:45.3]} 7... a5 {[%clk 0:02:30.3]} 8. b3 {[%clk 0:02:26.4]}
8... O-O {[%clk 0:02:10.8]} 9. Ba3 {[%clk 0:02:24.8]} 9... Re8 {[%clk
0:02:05.7]} 10. e3 {[%clk 0:02:23.5]} 10... c6 {[%clk 0:02:02.3]} 11. Qe2 {[%clk
0:02:06.7]} 11... Bg4 {[%clk 0:01:35.3]} 12. Qd3 {[%clk 0:01:50.7]} 12... Bf5
{[%clk 0:01:29.3]} 13. Qe2 {[%clk 0:01:47]} 13... Bg4 {[%clk 0:01:29.1]} 14. Qd3
{[%clk 0:01:41.8]} 14... Bf5 {[%clk 0:01:29.4]} 15. Qd2 {[%clk 0:01:40.8]} 15...
Ne4 {[%clk 0:01:17.3]} 16. Nxe4 {[%clk 0:01:35.9]} 16... Bxe4 {[%clk 0:01:18.2]}
17. Rad1 {[%clk 0:01:28.8]} 17... h6 {[%clk 0:00:59.2]} 18. Qc1 {[%clk
0:01:17.5]} 18... Rc8 {[%clk 0:00:48]} 19. Rfe1 {[%clk 0:01:11.6]} 19... e6
{[%clk 0:00:43.7]} 20. Bb2 {[%clk 0:01:06.9]} 20... Qf6 {[%clk 0:00:27.7]} 21.
Ne5 {[%clk 0:01:03.3]} 21... Bxg2 {[%clk 0:00:27.5]} 22. Kxg2 {[%clk 0:01:04.2]}
22... Qe7 {[%clk 0:00:27.7]} 23. Nd3 {[%clk 0:01:02.2]} 23... Nd7 {[%clk
0:00:23]} 24. c4 {[%clk 0:01:01.9]} 24... dxc4 {[%clk 0:00:14]} 25. bxc4 {[%clk
0:00:56.3]} 25... Nb6 {[%clk 0:00:11]} 26. Qc2 {[%clk 0:00:55]} 26... Qc7 {[%clk
0:00:04.7]} 27. Qb3 {[%clk 0:00:52.8]} 27... Nd7 {[%clk 0:00:04.5]} 28. e4
{[%clk 0:00:44.1]} 28... c5 {[%clk 0:00:04]} 29. d5 {[%clk 0:00:40.1]} 29...
exd5 {[%clk 0:00:02.5]} 30. exd5 {[%clk 0:00:37.3]} 30... Nb6 {[%clk 0:00:01.5]}
31. Bxg7 {[%clk 0:00:36.4]} 31... Kxg7 {[%clk 0:00:01.8]} 32. Rxe8 {[%clk
0:00:32.2]} 32... Rxe8 {[%clk 0:00:02.7]} 33. Qc3+ {[%clk 0:00:32.9]} 33... Kg8
{[%clk 0:00:02.7]} 34. Qxa5 {[%clk 0:00:33.1]} 34... Ra8 {[%clk 0:00:02.3]} 35.
Qxc5 {[%clk 0:00:32.7]} 35... Qxc5 {[%clk 0:00:01]} 36. Nxc5 {[%clk 0:00:33.6]}
36... Nxc4 {[%clk 0:00:01.9]} 37. d6 {[%clk 0:00:29.3]} 37... Rd8 {[%clk
0:00:02.2]} 38. Nxb7 {[%clk 0:00:24.7]} 38... Rd7 {[%clk 0:00:02]} 39. a5 {[%clk
0:00:25.2]} 1-0

[Event "Late-Titled-Tuesday-Blitz-May-28-2024"]
[Site "Chess.com"]
[Date "2024.05.28"]
[Round "5"]
[White "olawsson"]
[Black "VD_coach"]
[Result "0-1"]
[WhiteElo "2167"]
[BlackElo "2530"]
[TimeControl "180+1"]
[EndTime "14:55:56 PDT"]
[Termination "VD_coach won on time"]

1. d4 {[%clk 0:02:56.2]} 1... Nf6 {[%clk 0:02:58]} 2. c4 {[%clk 0:02:53.8]} 2...
g6 {[%clk 0:02:58.9]} 3. Nc3 {[%clk 0:02:52.9]} 3... Bg7 {[%clk 0:02:42.3]} 4.
e4 {[%clk 0:02:52.6]} 4... O-O {[%clk 0:02:28.5]} 5. Nf3 {[%clk 0:02:51.9]} 5...
d6 {[%clk 0:02:22.4]} 6. Be2 {[%clk 0:02:52]} 6... c5 {[%clk 0:02:17.9]} 7. d5
{[%clk 0:02:51.5]} 7... b5 {[%clk 0:02:17.8]} 8. cxb5 {[%clk 0:02:33.9]} 8... a6
{[%clk 0:02:17.1]} 9. b6 {[%clk 0:02:12.3]} 9... Qxb6 {[%clk 0:02:15.8]} 10. O-O
{[%clk 0:02:11.3]} 10... a5 {[%clk 0:02:12.7]} 11. Nd2 {[%clk 0:02:09.3]} 11...
Ba6 {[%clk 0:02:12.4]} 12. Nc4 {[%clk 0:02:04.2]} 12... Bxc4 {[%clk 0:02:11.2]}
13. Bxc4 {[%clk 0:02:03.7]} 13... a4 {[%clk 0:02:08.4]} 14. a3 {[%clk
0:01:47.8]} 14... Nbd7 {[%clk 0:01:58.2]} 15. f4 {[%clk 0:01:36.5]} 15... Rfb8
{[%clk 0:01:45.2]} 16. Qe2 {[%clk 0:01:26.7]} 16... Qc7 {[%clk 0:01:37.9]} 17.
Rb1 {[%clk 0:01:13.8]} 17... Nb6 {[%clk 0:01:29.2]} 18. Bb5 {[%clk 0:01:13.8]}
18... c4 {[%clk 0:01:26.2]} 19. Bc6 {[%clk 0:01:13.7]} 19... Ra5 {[%clk
0:01:21.4]} 20. Be3 {[%clk 0:01:08.4]} 20... Nfd7 {[%clk 0:01:13.8]} 21. Rfd1
{[%clk 0:01:04.2]} 21... Nc5 {[%clk 0:01:11.4]} 22. Bxc5 {[%clk 0:00:37.1]}
22... Rxc5 {[%clk 0:01:12.3]} 23. Nxa4 {[%clk 0:00:33.6]} 23... Nxa4 {[%clk
0:01:09.9]} 24. Bxa4 {[%clk 0:00:33.7]} 24... c3 {[%clk 0:00:46.8]} 25. bxc3
{[%clk 0:00:28.1]} 25... Rxb1 {[%clk 0:00:43.4]} 26. Rxb1 {[%clk 0:00:27.1]}
26... Bxc3 {[%clk 0:00:42.7]} 27. Qd3 {[%clk 0:00:18]} 27... h5 {[%clk
0:00:38.9]} 28. Bc6 {[%clk 0:00:17]} 28... Bf6 {[%clk 0:00:37.5]} 29. a4 {[%clk
0:00:16.5]} 29... Qa5 {[%clk 0:00:36.1]} 30. h3 {[%clk 0:00:11.2]} 30... Rc3
{[%clk 0:00:34.6]} 31. Qb5 {[%clk 0:00:10.2]} 31... Bd4+ {[%clk 0:00:32.7]} 32.
Kh2 {[%clk 0:00:09]} 32... Qa7 {[%clk 0:00:31.2]} 33. Qb8+ {[%clk 0:00:07.1]}
33... Qxb8 {[%clk 0:00:31.2]} 34. Rxb8+ {[%clk 0:00:07.7]} 34... Kg7 {[%clk
0:00:32]} 35. Rb1 {[%clk 0:00:05.4]} 35... h4 {[%clk 0:00:30.4]} 36. a5 {[%clk
0:00:03]} 36... Ra3 {[%clk 0:00:29.9]} 37. Rd1 {[%clk 0:00:01]} 37... Bc5 {[%clk
0:00:29.7]} 0-1

[Event "Late-Titled-Tuesday-Blitz-May-28-2024"]
[Site "Chess.com"]
[Date "2024.05.28"]
[Round "5"]
[White "Romadk"]
[Black "TatjanaVasilevich"]
[Result "1-0"]
[WhiteElo "2469"]
[BlackElo "2580"]
[TimeControl "180+1"]
[EndTime "14:55:57 PDT"]
[Termination "Romadk won by checkmate"]

1. d4 {[%clk 0:03:00.9]} 1... Nf6 {[%clk 0:02:58.3]} 2. Nf3 {[%clk 0:03:00.5]}
2... e6 {[%clk 0:02:57.7]} 3. g3 {[%clk 0:03:00.3]} 3... d5 {[%clk 0:02:57]} 4.
Bg2 {[%clk 0:03:00.7]} 4... Be7 {[%clk 0:02:56.7]} 5. c4 {[%clk 0:02:59]} 5...
dxc4 {[%clk 0:02:57.1]} 6. Nc3 {[%clk 0:02:58.6]} 6... Nc6 {[%clk 0:02:56.9]} 7.
Qa4 {[%clk 0:02:53.6]} 7... O-O {[%clk 0:02:42.8]} 8. Qxc4 {[%clk 0:02:50.9]}
8... Rb8 {[%clk 0:02:38.3]} 9. O-O {[%clk 0:02:45.9]} 9... Na5 {[%clk
0:02:37.9]} 10. Qa4 {[%clk 0:02:29.6]} 10... c5 {[%clk 0:02:14.5]} 11. Rd1
{[%clk 0:02:23.3]} 11... b5 {[%clk 0:02:03]} 12. Qc2 {[%clk 0:02:12.4]} 12... c4
{[%clk 0:02:02.1]} 13. Bf4 {[%clk 0:02:08.4]} 13... Bd6 {[%clk 0:02:00.3]} 14.
Bxd6 {[%clk 0:01:58.2]} 14... Qxd6 {[%clk 0:02:01.2]} 15. e4 {[%clk 0:01:58.5]}
15... Qe7 {[%clk 0:01:55.9]} 16. e5 {[%clk 0:01:55.9]} 16... Nd5 {[%clk
0:01:55.2]} 17. Ne4 {[%clk 0:01:54.7]} 17... Nc6 {[%clk 0:01:36.2]} 18. Nd6
{[%clk 0:01:42.5]} 18... f6 {[%clk 0:01:31.5]} 19. a4 {[%clk 0:01:33.9]} 19...
a6 {[%clk 0:01:19]} 20. axb5 {[%clk 0:01:31.1]} 20... axb5 {[%clk 0:01:19.9]}
21. b3 {[%clk 0:01:02.5]} 21... fxe5 {[%clk 0:01:11.2]} 22. dxe5 {[%clk
0:00:58.3]} 22... c3 {[%clk 0:01:01.4]} 23. h4 {[%clk 0:00:44.7]} 23... h6
{[%clk 0:00:48]} 24. Qg6 {[%clk 0:00:40.1]} 24... Rxf3 {[%clk 0:00:25.6]} 25.
Nxc8 {[%clk 0:00:32.2]} 25... Rxc8 {[%clk 0:00:25.7]} 26. Bxf3 {[%clk
0:00:31.9]} 26... Nxe5 {[%clk 0:00:25.6]} 27. Qe4 {[%clk 0:00:29.3]} 27... c2
{[%clk 0:00:23.5]} 28. Qxe5 {[%clk 0:00:25.5]} 28... cxd1=Q+ {[%clk 0:00:22.3]}
29. Rxd1 {[%clk 0:00:26.4]} 29... Nc3 {[%clk 0:00:21.5]} 30. Rd6 {[%clk
0:00:20.4]} 30... Re8 {[%clk 0:00:19.1]} 31. Rb6 {[%clk 0:00:15.3]} 31... Qa3
{[%clk 0:00:18]} 32. Qxc3 {[%clk 0:00:13.8]} 32... Rf8 {[%clk 0:00:17.9]} 33.
Rxe6 {[%clk 0:00:11.1]} 33... b4 {[%clk 0:00:16.7]} 34. Qe1 {[%clk 0:00:08.5]}
34... Rxf3 {[%clk 0:00:16.5]} 35. Re8+ {[%clk 0:00:08.7]} 35... Kf7 {[%clk
0:00:15.6]} 36. Qe6# {[%clk 0:00:08.8]} 1-0

[Event "Late-Titled-Tuesday-Blitz-May-28-2024"]
[Site "Chess.com"]
[Date "2024.05.28"]
[Round "5"]
[White "lamomiajunior"]
[Black "Jahonas"]
[Result "1-0"]
[WhiteElo "2744"]
[BlackElo "2444"]
[TimeControl "180+1"]
[EndTime "14:55:59 PDT"]
[Termination "lamomiajunior won on time"]

1. d4 {[%clk 0:03:00.9]} 1... Nf6 {[%clk 0:02:59.4]} 2. Nc3 {[%clk 0:03:01.3]}
2... d5 {[%clk 0:02:59]} 3. Bf4 {[%clk 0:03:01.8]} 3... e6 {[%clk 0:02:58.1]} 4.
Nb5 {[%clk 0:03:01.3]} 4... Na6 {[%clk 0:02:57.4]} 5. e3 {[%clk 0:03:01.5]} 5...
c6 {[%clk 0:02:56.2]} 6. Nc3 {[%clk 0:03:02]} 6... Nc7 {[%clk 0:02:55.8]} 7. Nf3
{[%clk 0:03:01.9]} 7... Bd6 {[%clk 0:02:55.8]} 8. Ne5 {[%clk 0:03:02.4]} 8...
O-O {[%clk 0:02:52.2]} 9. Bd3 {[%clk 0:03:02.8]} 9... c5 {[%clk 0:02:44.7]} 10.
dxc5 {[%clk 0:03:03.7]} 10... Bxc5 {[%clk 0:02:43.8]} 11. Qf3 {[%clk 0:03:04.2]}
11... Nce8 {[%clk 0:02:30.5]} 12. g4 {[%clk 0:03:01.7]} 12... Nd6 {[%clk
0:02:29.3]} 13. O-O-O {[%clk 0:02:55.5]} 13... Qa5 {[%clk 0:02:25.8]} 14. g5
{[%clk 0:02:51.2]} 14... Nfe4 {[%clk 0:02:24.6]} 15. Bxe4 {[%clk 0:02:40.5]}
15... Nxe4 {[%clk 0:02:20.8]} 16. Nxe4 {[%clk 0:02:38.1]} 16... dxe4 {[%clk
0:02:19.8]} 17. Qxe4 {[%clk 0:02:38.7]} 17... Qxa2 {[%clk 0:02:16.8]} 18. Qc4
{[%clk 0:02:33.9]} 18... Qa1+ {[%clk 0:01:44.1]} 19. Kd2 {[%clk 0:02:33.1]}
19... Qa5+ {[%clk 0:01:28.2]} 20. c3 {[%clk 0:02:33.4]} 20... Qb6 {[%clk
0:01:24.6]} 21. b4 {[%clk 0:02:31.4]} 21... Bd6 {[%clk 0:01:17]} 22. Ke2 {[%clk
0:02:29.8]} 22... Rd8 {[%clk 0:01:08.6]} 23. h4 {[%clk 0:01:34.7]} 23... Bxe5
{[%clk 0:00:56.9]} 24. Bxe5 {[%clk 0:01:35.6]} 24... Bd7 {[%clk 0:00:54.9]} 25.
Qf4 {[%clk 0:01:21.2]} 25... Qa6+ {[%clk 0:00:48.3]} 26. c4 {[%clk 0:01:17.9]}
26... Ba4 {[%clk 0:00:45.2]} 27. Rc1 {[%clk 0:01:11.5]} 27... Rac8 {[%clk
0:00:41.3]} 28. b5 {[%clk 0:00:53.3]} 28... Qa5 {[%clk 0:00:37.7]} 29. Bc3
{[%clk 0:00:51.9]} 29... Qc7 {[%clk 0:00:36.2]} 30. Be5 {[%clk 0:00:46.3]} 30...
Qd7 {[%clk 0:00:33.6]} 31. Bd4 {[%clk 0:00:42.7]} 31... Qe7 {[%clk 0:00:18.8]}
32. Qe5 {[%clk 0:00:39.4]} 32... Qf8 {[%clk 0:00:18.4]} 33. h5 {[%clk
0:00:39.3]} 33... Bb3 {[%clk 0:00:17.8]} 34. h6 {[%clk 0:00:18.9]} 34... Bxc4+
{[%clk 0:00:17.7]} 35. Rxc4 {[%clk 0:00:19.3]} 35... Rxc4 {[%clk 0:00:17.9]} 36.
hxg7 {[%clk 0:00:20.2]} 36... Qd6 {[%clk 0:00:16.5]} 37. Qe4 {[%clk 0:00:20.7]}
37... Rc2+ {[%clk 0:00:02.8]} 38. Qxc2 {[%clk 0:00:19.7]} 1-0